[Event "December 19 Early 2023"]
[Site "https://www.chess.com"]
[Date "2023.12.19"]
[Round "2"]
[White "Spichkin, Alexander"]
[Black "Yushko, Olga"]
[Result "0-1"]
[Board "232"]
[TimeControl "180+1"]
[WhiteFideId "4144074"]
[BlackFideId "14114500"]
[WhiteElo "1955"]
[BlackElo "1891"]
[WhiteTeam "RUS"]
[BlackTeam "UKR"]
[WhiteClock "0:00:00"]
[BlackClock "0:00:24"]

1. f4 {[%clk 0:03:00]}  e6 {[%clk 0:02:59]} 2. Nf3 {[%clk 0:03:01]}  d5 {[%clk 0:02:59]} 3. e3 {[%clk 0:03:01]}  Nf6 {[%clk 0:02:59]} 4. b3 {[%clk 0:03:01]}  Be7 {[%clk 0:03:00]} 5. Bb2 {[%clk 0:03:01]}  O-O {[%clk 0:03:01]} 6. Bd3 {[%clk 0:03:01]}  c5 {[%clk 0:03:01]} 7. O-O {[%clk 0:03:02]}  Nc6 {[%clk 0:03:01]} 8. Ne5 {[%clk 0:03:02]}  Qc7 {[%clk 0:02:58]} 9. Rf3 {[%clk 0:03:01]}  Ne4 {[%clk 0:02:57]} 10. Rh3 {[%clk 0:02:59]}  h6 {[%clk 0:02:43]} 11. Qh5 {[%clk 0:02:32]}  Nf6 {[%clk 0:02:36]} 12. Qe2 {[%clk 0:02:28]}  Ne4 {[%clk 0:02:26]} 13. Bxe4 {[%clk 0:02:17]}  dxe4 {[%clk 0:02:26]} 14. Nxc6 {[%clk 0:02:00]}  Qxc6 {[%clk 0:02:22]} 15. Rg3 {[%clk 0:01:46]}  f6 {[%clk 0:02:17]} 16. Qh5 {[%clk 0:01:43]}  Kh8 {[%clk 0:02:08]} 17. Qg6 {[%clk 0:01:41]}  Rg8 {[%clk 0:02:05]} 18. Rh3 {[%clk 0:01:41]}  Rf8 {[%clk 0:01:51]} 19. Rg3 {[%clk 0:01:26]}  Rg8 {[%clk 0:01:49]} 20. Nc3 {[%clk 0:01:21]}  Bd7 {[%clk 0:01:43]} 21. Qxe4 {[%clk 0:00:59]}  Qxe4 {[%clk 0:01:41]} 22. Nxe4 {[%clk 0:00:59]}  Bc6 {[%clk 0:01:39]} 23. Nf2 {[%clk 0:00:56]}  Rgd8 {[%clk 0:01:37]} 24. d3 {[%clk 0:00:55]}  b5 {[%clk 0:01:35]} 25. Re1 {[%clk 0:00:39]}  c4 {[%clk 0:01:31]} 26. Bd4 {[%clk 0:00:35]}  cxb3 {[%clk 0:01:27]} 27. axb3 {[%clk 0:00:35]}  a5 {[%clk 0:01:25]} 28. Ra1 {[%clk 0:00:33]}  a4 {[%clk 0:01:25]} 29. bxa4 {[%clk 0:00:33]}  bxa4 {[%clk 0:01:26]} 30. Nd1 {[%clk 0:00:33]}  Rdb8 {[%clk 0:01:09]} 31. e4 {[%clk 0:00:24]}  Bd6 {[%clk 0:00:51]} 32. Rf3 {[%clk 0:00:23]}  e5 {[%clk 0:00:50]} 33. fxe5 {[%clk 0:00:22]}  fxe5 {[%clk 0:00:51]} 34. Bc3 {[%clk 0:00:21]}  Rc8 {[%clk 0:00:49]} 35. Rf7 {[%clk 0:00:20]}  Be8 {[%clk 0:00:45]} 36. Rb7 {[%clk 0:00:18]}  Bc5+ {[%clk 0:00:32]} 37. Kf1 {[%clk 0:00:17]}  Bc6 {[%clk 0:00:32]} 38. Rf7 {[%clk 0:00:17]}  Be8 {[%clk 0:00:31]} 39. Rb7 {[%clk 0:00:13]}  Bc6 {[%clk 0:00:31]} 40. Rbb1 {[%clk 0:00:11]}  Bd6 {[%clk 0:00:30]} 41. Ke2 {[%clk 0:00:11]}  Rf8 {[%clk 0:00:29]} 42. Kd2 {[%clk 0:00:05]}  Rac8 {[%clk 0:00:28]} 43. Rb6 {[%clk 0:00:05]}  Bc5 {[%clk 0:00:28]} 44. Ra6 {[%clk 0:00:03]}  Bd6 {[%clk 0:00:25]} 45. Ra2 {[%clk 0:00:00]}  Rf6 {[%clk 0:00:24]} 0-1

[Event "December 19 Early 2023"]
[Site "https://www.chess.com"]
[Date "2023.12.19"]
[Round "2"]
[White "Sevostianov, Vladimir"]
[Black "Mizzi, Jack"]
[Result "1-0"]
[Board "236"]
[TimeControl "180+1"]
[WhiteFideId "4144163"]
[BlackFideId "5602521"]
[WhiteElo "2150"]
[BlackElo "2127"]
[WhiteTeam "RUS"]
[BlackTeam "MLT"]
[WhiteClock "0:01:22"]
[BlackClock "0:00:10"]

1. e4 {[%clk 0:03:00]}  c6 {[%clk 0:02:58]} 2. d4 {[%clk 0:02:59]}  d5 {[%clk 0:02:59]} 3. Nd2 {[%clk 0:02:59]}  dxe4 {[%clk 0:02:59]} 4. Nxe4 {[%clk 0:02:59]}  Bf5 {[%clk 0:02:59]} 5. Ng3 {[%clk 0:02:58]}  Bg6 {[%clk 0:02:59]} 6. Nf3 {[%clk 0:02:59]}  Nd7 {[%clk 0:02:58]} 7. h4 {[%clk 0:02:58]}  h6 {[%clk 0:02:58]} 8. h5 {[%clk 0:02:58]}  Bh7 {[%clk 0:02:58]} 9. Bd3 {[%clk 0:02:59]}  Bxd3 {[%clk 0:02:58]} 10. Qxd3 {[%clk 0:02:58]}  Ngf6 {[%clk 0:02:58]} 11. Bd2 {[%clk 0:02:56]}  e6 {[%clk 0:02:59]} 12. O-O-O {[%clk 0:02:49]}  Be7 {[%clk 0:02:58]} 13. c4 {[%clk 0:02:48]}  Qb6 {[%clk 0:02:58]} 14. Bc3 {[%clk 0:02:48]}  O-O-O {[%clk 0:02:57]} 15. Qe2 {[%clk 0:02:46]}  Kb8 {[%clk 0:02:51]} 16. Rhe1 {[%clk 0:02:44]}  Qa6 {[%clk 0:02:45]} 17. Kb1 {[%clk 0:02:42]}  c5 {[%clk 0:02:43]} 18. d5 {[%clk 0:02:39]}  Nb6 {[%clk 0:02:27]} 19. dxe6 {[%clk 0:02:33]}  Nxc4 {[%clk 0:01:12]} 20. Rxd8+ {[%clk 0:02:27]}  Rxd8 {[%clk 0:01:03]} 21. exf7 {[%clk 0:02:26]}  Nd5 {[%clk 0:01:03]} 22. Bxg7 {[%clk 0:02:20]}  Bf6 {[%clk 0:00:14]} 23. Bxf6 {[%clk 0:02:04]}  Nxf6 {[%clk 0:00:13]} 24. Qe7 {[%clk 0:01:58]}  Qb6 {[%clk 0:00:12]} 25. b3 {[%clk 0:01:48]}  a5 {[%clk 0:00:01]} 26. f8=Q {[%clk 0:01:39]}  Rxf8 {[%clk 0:00:02]} 27. Qxf8+ {[%clk 0:01:38]}  Ka7 {[%clk 0:00:02]} 28. Ne4 {[%clk 0:01:30]}  Nd5 {[%clk 0:00:02]} 29. Qxc5 {[%clk 0:01:29]}  Qxc5 {[%clk 0:00:02]} 30. Nxc5 {[%clk 0:01:28]}  Na3+ {[%clk 0:00:02]} 31. Kb2 {[%clk 0:01:28]}  Nb5 {[%clk 0:00:02]} 32. Rd1 {[%clk 0:01:26]}  Nb4 {[%clk 0:00:02]} 33. Rd7 {[%clk 0:01:25]}  Nc6 {[%clk 0:00:02]} 34. Rxb7+ {[%clk 0:01:25]}  Ka8 {[%clk 0:00:03]} 35. Rxb5 {[%clk 0:01:25]}  Ne7 {[%clk 0:00:03]} 36. Rxa5+ {[%clk 0:01:25]}  Kb8 {[%clk 0:00:04]} 37. Ne5 {[%clk 0:01:25]}  Nd5 {[%clk 0:00:02]} 38. Ncd7+ {[%clk 0:01:25]}  Kc7 {[%clk 0:00:03]} 39. Rxd5 {[%clk 0:01:26]}  Kd8 {[%clk 0:00:03]} 40. b4 {[%clk 0:01:25]}  Kc7 {[%clk 0:00:04]} 41. b5 {[%clk 0:01:25]}  Kd8 {[%clk 0:00:04]} 42. a4 {[%clk 0:01:26]}  Kc8 {[%clk 0:00:05]} 43. a5 {[%clk 0:01:26]}  Kb7 {[%clk 0:00:06]} 44. a6+ {[%clk 0:01:27]}  Ka8 {[%clk 0:00:07]} 45. Rc5 {[%clk 0:01:24]}  Ka7 {[%clk 0:00:08]} 46. Rc7+ {[%clk 0:01:23]}  Ka8 {[%clk 0:00:09]} 47. Nb6+ {[%clk 0:01:22]}  Kb8 {[%clk 0:00:10]} 48. Rb7# {[%clk 0:01:22]} 1-0

[Event "December 19 Early 2023"]
[Site "https://www.chess.com"]
[Date "2023.12.19"]
[Round "2"]
[White "Kovacsy, Barnabas"]
[Black "Sailer, Mike"]
[Result "1-0"]
[Board "238"]
[TimeControl "180+1"]
[WhiteFideId "769290"]
[BlackFideId "2012901"]
[WhiteElo "2130"]
[BlackElo "2109"]
[WhiteTeam "HUN"]
[BlackTeam "USA"]
[WhiteClock "0:00:34"]
[BlackClock "0:00:02"]

1. e4 {[%clk 0:03:00]}  d5 {[%clk 0:02:25]} 2. exd5 {[%clk 0:02:55]}  Qxd5 {[%clk 0:02:24]} 3. Nc3 {[%clk 0:02:54]}  Qd6 {[%clk 0:02:22]} 4. d4 {[%clk 0:02:49]}  c6 {[%clk 0:02:22]} 5. Nf3 {[%clk 0:02:46]}  Bg4 {[%clk 0:02:12]} 6. Be2 {[%clk 0:02:42]}  e6 {[%clk 0:02:10]} 7. O-O {[%clk 0:02:41]}  Nf6 {[%clk 0:02:07]} 8. h3 {[%clk 0:02:38]}  Bxf3 {[%clk 0:02:05]} 9. Bxf3 {[%clk 0:02:37]}  Nbd7 {[%clk 0:02:05]} 10. Ne2 {[%clk 0:02:27]}  Qc7 {[%clk 0:02:04]} 11. c3 {[%clk 0:02:21]}  Bd6 {[%clk 0:01:58]} 12. Bg5 {[%clk 0:02:17]}  O-O {[%clk 0:01:56]} 13. Qc2 {[%clk 0:02:16]}  h6 {[%clk 0:01:50]} 14. Bh4 {[%clk 0:02:16]}  Rfe8 {[%clk 0:01:45]} 15. Rad1 {[%clk 0:02:06]}  e5 {[%clk 0:01:37]} 16. dxe5 {[%clk 0:02:05]}  Nxe5 {[%clk 0:01:36]} 17. Bxf6 {[%clk 0:01:45]}  Nxf3+ {[%clk 0:01:34]} 18. gxf3 {[%clk 0:01:46]}  gxf6 {[%clk 0:01:27]} 19. Nd4 {[%clk 0:01:37]}  Kh8 {[%clk 0:01:12]} 20. Qf5 {[%clk 0:01:31]}  Rg8+ {[%clk 0:01:06]} 21. Kh1 {[%clk 0:01:30]}  Rg6 {[%clk 0:01:06]} 22. h4 {[%clk 0:01:17]}  Be5 {[%clk 0:00:32]} 23. Rg1 {[%clk 0:01:10]}  Rag8 {[%clk 0:00:31]} 24. Rxg6 {[%clk 0:01:10]}  fxg6 {[%clk 0:00:30]} 25. Qe6 {[%clk 0:01:05]}  Qd6 {[%clk 0:00:20]} 26. Qxd6 {[%clk 0:01:01]}  Bxd6 {[%clk 0:00:20]} 27. Nxc6 {[%clk 0:01:01]}  Bc5 {[%clk 0:00:15]} 28. Nd4 {[%clk 0:01:00]}  Re8 {[%clk 0:00:12]} 29. Kg2 {[%clk 0:01:00]}  Kg7 {[%clk 0:00:09]} 30. Rd2 {[%clk 0:00:57]}  Re1 {[%clk 0:00:07]} 31. b4 {[%clk 0:00:56]}  Bb6 {[%clk 0:00:07]} 32. a4 {[%clk 0:00:52]}  a6 {[%clk 0:00:07]} 33. a5 {[%clk 0:00:51]}  Ba7 {[%clk 0:00:08]} 34. Nc2 {[%clk 0:00:51]}  Rc1 {[%clk 0:00:08]} 35. Rd7+ {[%clk 0:00:51]}  Kg8 {[%clk 0:00:09]} 36. Rxb7 {[%clk 0:00:51]}  Bxf2 {[%clk 0:00:08]} 37. Kxf2 {[%clk 0:00:40]}  Rxc2+ {[%clk 0:00:08]} 38. Kg3 {[%clk 0:00:41]}  Rxc3 {[%clk 0:00:09]} 39. Rb6 {[%clk 0:00:41]}  Rb3 {[%clk 0:00:09]} 40. Rxf6 {[%clk 0:00:40]}  Kg7 {[%clk 0:00:09]} 41. Rb6 {[%clk 0:00:37]}  h5 {[%clk 0:00:09]} 42. Kf4 {[%clk 0:00:37]}  Kf7 {[%clk 0:00:10]} 43. Kg5 {[%clk 0:00:35]}  Rxf3 {[%clk 0:00:10]} 44. Rb7+ {[%clk 0:00:34]}  Kg8 {[%clk 0:00:09]} 45. Kxg6 {[%clk 0:00:34]}  Rg3+ {[%clk 0:00:09]} 46. Kxh5 {[%clk 0:00:35]}  Rg1 {[%clk 0:00:07]} 47. Rb6 {[%clk 0:00:34]}  Rb1 {[%clk 0:00:07]} 48. Kg5 {[%clk 0:00:34]}  Rg1+ {[%clk 0:00:06]} 49. Kf5 {[%clk 0:00:35]}  Rf1+ {[%clk 0:00:06]} 50. Ke5 {[%clk 0:00:35]}  Re1+ {[%clk 0:00:06]} 51. Kd5 {[%clk 0:00:35]}  Rh1 {[%clk 0:00:06]} 52. Rxa6 {[%clk 0:00:35]}  Rxh4 {[%clk 0:00:06]} 53. Rb6 {[%clk 0:00:35]}  Kf8 {[%clk 0:00:02]} 54. a6 {[%clk 0:00:34]} 1-0

[Event "December 19 Early 2023"]
[Site "https://www.chess.com"]
[Date "2023.12.19"]
[Round "2"]
[White "Nikulina, Alena"]
[Black "Lopusiewicz, Piotr"]
[Result "0-1"]
[Board "241"]
[TimeControl "180+1"]
[WhiteFideId "4172051"]
[BlackFideId "1116029"]
[WhiteElo "1627"]
[BlackElo "2286"]
[WhiteTeam "RUS"]
[BlackTeam "POL"]
[WhiteClock "0:00:10"]
[BlackClock "0:01:09"]

1. e4 {[%clk 0:03:00]}  c5 {[%clk 0:03:00]} 2. Nf3 {[%clk 0:02:59]}  e6 {[%clk 0:02:59]} 3. d4 {[%clk 0:02:59]}  cxd4 {[%clk 0:02:59]} 4. Nxd4 {[%clk 0:02:57]}  Nf6 {[%clk 0:03:00]} 5. Nc3 {[%clk 0:02:56]}  Nc6 {[%clk 0:03:00]} 6. Nxc6 {[%clk 0:02:56]}  bxc6 {[%clk 0:03:00]} 7. e5 {[%clk 0:02:56]}  Nd5 {[%clk 0:02:59]} 8. Ne4 {[%clk 0:02:56]}  Qc7 {[%clk 0:02:59]} 9. f4 {[%clk 0:02:55]}  Qb6 {[%clk 0:03:00]} 10. c4 {[%clk 0:02:55]}  Bb4+ {[%clk 0:02:59]} 11. Ke2 {[%clk 0:02:55]}  f5 {[%clk 0:02:59]} 12. exf6 {[%clk 0:02:48]}  Nxf6 {[%clk 0:02:58]} 13. Nxf6+ {[%clk 0:02:45]}  gxf6 {[%clk 0:02:58]} 14. Be3 {[%clk 0:02:08]}  Bc5 {[%clk 0:02:53]} 15. Bxc5 {[%clk 0:02:04]}  Qxc5 {[%clk 0:02:53]} 16. Kf3 {[%clk 0:01:55]}  Rg8 {[%clk 0:02:37]} 17. Bd3 {[%clk 0:01:37]}  Bb7 {[%clk 0:02:32]} 18. a3 {[%clk 0:01:28]}  O-O-O {[%clk 0:02:18]} 19. b4 {[%clk 0:01:27]}  Qh5+ {[%clk 0:02:10]} 20. Kf2 {[%clk 0:01:24]}  Qh6 {[%clk 0:01:43]} 21. g3 {[%clk 0:01:18]}  c5 {[%clk 0:01:40]} 22. bxc5 {[%clk 0:01:00]}  Qh3 {[%clk 0:01:39]} 23. Bf1 {[%clk 0:00:40]}  Qf5 {[%clk 0:01:34]} 24. Bg2 {[%clk 0:00:33]}  Qxc5+ {[%clk 0:01:34]} 25. Kf1 {[%clk 0:00:28]}  Qxc4+ {[%clk 0:01:27]} 26. Kf2 {[%clk 0:00:27]}  Qc5+ {[%clk 0:01:21]} 27. Kf1 {[%clk 0:00:25]}  Qb5+ {[%clk 0:01:20]} 28. Kg1 {[%clk 0:00:17]}  Qc5+ {[%clk 0:01:10]} 29. Kf1 {[%clk 0:00:17]}  Ba6+ {[%clk 0:01:10]} 30. Ke1 {[%clk 0:00:10]}  Qe3+ {[%clk 0:01:09]} 0-1

[Event "December 19 Early 2023"]
[Site "https://www.chess.com"]
[Date "2023.12.19"]
[Round "2"]
[White "Marchesich, Giovanni"]
[Black "Shadhursshaan R"]
[Result "0-1"]
[Board "245"]
[TimeControl "180+1"]
[WhiteFideId "2824790"]
[BlackFideId "45024138"]
[WhiteElo "2198"]
[BlackElo "1760"]
[WhiteTeam "ITA"]
[BlackTeam "IND"]
[WhiteClock "0:01:09"]
[BlackClock "0:01:19"]

1. e4 {[%clk 0:03:00]}  c6 {[%clk 0:02:55]} 2. Nc3 {[%clk 0:02:55]}  d5 {[%clk 0:02:56]} 3. Nf3 {[%clk 0:02:55]}  dxe4 {[%clk 0:02:52]} 4. Nxe4 {[%clk 0:02:56]}  g6 {[%clk 0:02:53]} 5. Bc4 {[%clk 0:02:53]}  Bg7 {[%clk 0:02:53]} 6. d4 {[%clk 0:02:50]}  Nf6 {[%clk 0:02:50]} 7. Nxf6+ {[%clk 0:02:50]}  Bxf6 {[%clk 0:02:51]} 8. Bh6 {[%clk 0:02:49]}  Nd7 {[%clk 0:02:49]} 9. O-O {[%clk 0:02:49]}  Nb6 {[%clk 0:02:49]} 10. Bb3 {[%clk 0:02:49]}  a5 {[%clk 0:02:50]} 11. a3 {[%clk 0:02:48]}  Bg4 {[%clk 0:02:50]} 12. c3 {[%clk 0:02:34]}  a4 {[%clk 0:02:32]} 13. Ba2 {[%clk 0:02:28]}  e6 {[%clk 0:02:25]} 14. h3 {[%clk 0:02:24]}  Bf5 {[%clk 0:02:21]} 15. Re1 {[%clk 0:02:22]}  Ra5 {[%clk 0:02:21]} 16. g4 {[%clk 0:02:19]}  Qc7 {[%clk 0:02:03]} 17. gxf5 {[%clk 0:02:15]}  Rxf5 {[%clk 0:02:03]} 18. Ne5 {[%clk 0:02:12]}  Rh5 {[%clk 0:02:00]} 19. Bf4 {[%clk 0:02:06]}  Rxh3 {[%clk 0:01:58]} 20. Nxg6 {[%clk 0:02:03]}  Qd8 {[%clk 0:01:41]} 21. Nxh8 {[%clk 0:02:02]}  Nd5 {[%clk 0:01:40]} 22. Bxd5 {[%clk 0:01:49]}  Qxd5 {[%clk 0:01:41]} 23. Kf1 {[%clk 0:01:33]}  Qh1+ {[%clk 0:01:24]} 24. Ke2 {[%clk 0:01:32]}  Qf3+ {[%clk 0:01:24]} 25. Kd2 {[%clk 0:01:29]}  Qxf2+ {[%clk 0:01:22]} 26. Re2 {[%clk 0:01:23]}  Qxf4+ {[%clk 0:01:22]} 27. Kc2 {[%clk 0:01:22]}  Qf5+ {[%clk 0:01:21]} 28. Kc1 {[%clk 0:01:18]}  Bg5+ {[%clk 0:01:22]} 29. Rd2 {[%clk 0:01:18]}  Rd3 {[%clk 0:01:20]} 30. Kb1 {[%clk 0:01:09]}  Rxd2+ {[%clk 0:01:19]} 0-1

[Event "December 19 Early 2023"]
[Site "https://www.chess.com"]
[Date "2023.12.19"]
[Round "2"]
[White "Cansun, Can Alp"]
[Black "Perez Cruz, Adianet"]
[Result "0-1"]
[Board "249"]
[TimeControl "180+1"]
[WhiteFideId "6390188"]
[BlackFideId "3510115"]
[WhiteElo "2031"]
[BlackElo "1987"]
[WhiteTeam "TUR"]
[BlackTeam "CUB"]
[WhiteClock "0:00:02"]
[BlackClock "0:00:28"]

1. d4 {[%clk 0:03:00]}  d5 {[%clk 0:02:59]} 2. c4 {[%clk 0:03:01]}  e5 {[%clk 0:02:58]} 3. dxe5 {[%clk 0:03:00]}  d4 {[%clk 0:02:59]} 4. Nf3 {[%clk 0:03:00]}  Nc6 {[%clk 0:02:59]} 5. g3 {[%clk 0:03:00]}  Be6 {[%clk 0:02:59]} 6. Bg2 {[%clk 0:02:57]}  Nge7 {[%clk 0:02:59]} 7. Nbd2 {[%clk 0:02:55]}  Ng6 {[%clk 0:02:59]} 8. a3 {[%clk 0:02:53]}  a5 {[%clk 0:02:58]} 9. b3 {[%clk 0:02:52]}  Qd7 {[%clk 0:02:58]} 10. Bb2 {[%clk 0:02:51]}  h5 {[%clk 0:02:54]} 11. h4 {[%clk 0:02:50]}  Rd8 {[%clk 0:02:50]} 12. O-O {[%clk 0:02:42]}  Be7 {[%clk 0:02:49]} 13. Qc2 {[%clk 0:02:38]}  O-O {[%clk 0:02:36]} 14. Rad1 {[%clk 0:02:31]}  Bh3 {[%clk 0:02:35]} 15. Ne4 {[%clk 0:02:23]}  Bxg2 {[%clk 0:01:59]} 16. Kxg2 {[%clk 0:02:22]}  Qg4 {[%clk 0:01:58]} 17. Kh2 {[%clk 0:02:02]}  Ncxe5 {[%clk 0:01:33]} 18. Nxe5 {[%clk 0:01:57]}  Nxe5 {[%clk 0:01:31]} 19. Bxd4 {[%clk 0:01:50]}  Ng6 {[%clk 0:01:25]} 20. f3 {[%clk 0:01:39]}  Qf5 {[%clk 0:01:14]} 21. Qc3 {[%clk 0:01:26]}  Bxh4 {[%clk 0:01:04]} 22. Bxg7 {[%clk 0:01:16]}  Rxd1 {[%clk 0:00:47]} 23. Rxd1 {[%clk 0:01:13]}  Re8 {[%clk 0:00:48]} 24. Bf6 {[%clk 0:00:36]}  Rxe4 {[%clk 0:00:36]} 25. Rd8+ {[%clk 0:00:29]}  Kh7 {[%clk 0:00:36]} 26. Bxh4 {[%clk 0:00:12]}  Rxe2+ {[%clk 0:00:34]} 27. Kg1 {[%clk 0:00:12]}  Qh3 {[%clk 0:00:29]} 28. Rh8+ {[%clk 0:00:09]}  Nxh8 {[%clk 0:00:28]} 29. Qd3+ {[%clk 0:00:09]}  Ng6 {[%clk 0:00:24]} 30. Qxe2 {[%clk 0:00:07]}  Nxh4 {[%clk 0:00:25]} 31. Qe4+ {[%clk 0:00:06]}  Ng6 {[%clk 0:00:24]} 32. Qxb7 {[%clk 0:00:03]}  Qxg3+ {[%clk 0:00:24]} 33. Kf1 {[%clk 0:00:04]}  Qd6 {[%clk 0:00:22]} 34. Qe4 {[%clk 0:00:04]}  Kg7 {[%clk 0:00:21]} 35. Qf5 {[%clk 0:00:04]}  Qf6 {[%clk 0:00:21]} 36. Qxh5 {[%clk 0:00:04]}  Qf4 {[%clk 0:00:21]} 37. Kg2 {[%clk 0:00:03]}  Qd2+ {[%clk 0:00:21]} 38. Kg3 {[%clk 0:00:04]}  Qh6 {[%clk 0:00:21]} 39. Qxa5 {[%clk 0:00:03]}  Qf4+ {[%clk 0:00:21]} 40. Kf2 {[%clk 0:00:03]}  Qd4+ {[%clk 0:00:20]} 41. Kg2 {[%clk 0:00:04]}  c5 {[%clk 0:00:20]} 42. Qe1 {[%clk 0:00:03]}  Qb2+ {[%clk 0:00:21]} 43. Qf2 {[%clk 0:00:03]}  Qxb3 {[%clk 0:00:21]} 44. Qxc5 {[%clk 0:00:04]}  Qxa3 {[%clk 0:00:21]} 45. Qd4+ {[%clk 0:00:04]}  Kh7 {[%clk 0:00:19]} 46. c5 {[%clk 0:00:05]}  Qa2+ {[%clk 0:00:19]} 47. Kg3 {[%clk 0:00:05]}  Qe6 {[%clk 0:00:20]} 48. Qg4 {[%clk 0:00:04]}  Qxg4+ {[%clk 0:00:20]} 49. Kxg4 {[%clk 0:00:04]}  Kg7 {[%clk 0:00:20]} 50. Kf5 {[%clk 0:00:04]}  Kf8 {[%clk 0:00:20]} 51. Kf6 {[%clk 0:00:04]}  Ke8 {[%clk 0:00:20]} 52. c6 {[%clk 0:00:04]}  Ne7 {[%clk 0:00:21]} 53. c7 {[%clk 0:00:04]}  Nc8 {[%clk 0:00:22]} 54. f4 {[%clk 0:00:04]}  Kf8 {[%clk 0:00:23]} 55. f5 {[%clk 0:00:04]}  Ke8 {[%clk 0:00:23]} 56. Kg7 {[%clk 0:00:04]}  Ke7 {[%clk 0:00:24]} 57. f6+ {[%clk 0:00:05]}  Ke6 {[%clk 0:00:25]} 58. Kf8 {[%clk 0:00:05]}  Kxf6 {[%clk 0:00:25]} 59. Ke8 {[%clk 0:00:05]}  Ke6 {[%clk 0:00:26]} 60. Kd8 {[%clk 0:00:06]}  Nd6 {[%clk 0:00:26]} 61. c8=Q+ {[%clk 0:00:03]}  Nxc8 {[%clk 0:00:26]} 62. Kxc8 {[%clk 0:00:03]}  f5 {[%clk 0:00:27]} 63. Kb7 {[%clk 0:00:02]}  f4 {[%clk 0:00:28]} 0-1

[Event "December 19 Early 2023"]
[Site "https://www.chess.com"]
[Date "2023.12.19"]
[Round "2"]
[White "Ohler, Julius"]
[Black "Bogumil, Tatiana"]
[Result "1-0"]
[Board "250"]
[TimeControl "180+1"]
[WhiteFideId "16238982"]
[BlackFideId "4110579"]
[WhiteElo "2200"]
[BlackElo "1853"]
[WhiteTeam "GER"]
[BlackTeam "RUS"]
[WhiteClock "0:00:37"]
[BlackClock "0:00:00"]

1. Nf3 {[%clk 0:03:00]}  Nf6 {[%clk 0:02:55]} 2. g3 {[%clk 0:03:00]}  b6 {[%clk 0:02:53]} 3. Bg2 {[%clk 0:03:00]}  Bb7 {[%clk 0:02:54]} 4. O-O {[%clk 0:03:00]}  g6 {[%clk 0:02:53]} 5. c4 {[%clk 0:03:01]}  Bg7 {[%clk 0:02:53]} 6. Nc3 {[%clk 0:03:00]}  O-O {[%clk 0:02:52]} 7. d3 {[%clk 0:03:00]}  c5 {[%clk 0:02:49]} 8. e4 {[%clk 0:02:59]}  d6 {[%clk 0:02:47]} 9. Ne1 {[%clk 0:02:53]}  Nc6 {[%clk 0:02:35]} 10. Nc2 {[%clk 0:02:53]}  Rc8 {[%clk 0:02:15]} 11. Be3 {[%clk 0:02:51]}  h6 {[%clk 0:01:39]} 12. h3 {[%clk 0:02:50]}  Kh7 {[%clk 0:01:37]} 13. Qd2 {[%clk 0:02:48]}  Nd7 {[%clk 0:01:28]} 14. Rab1 {[%clk 0:02:43]}  a6 {[%clk 0:01:23]} 15. a3 {[%clk 0:02:41]}  Nd4 {[%clk 0:01:20]} 16. Bxd4 {[%clk 0:02:21]}  cxd4 {[%clk 0:01:21]} 17. Ne2 {[%clk 0:02:22]}  e5 {[%clk 0:01:19]} 18. Nb4 {[%clk 0:02:06]}  b5 {[%clk 0:01:10]} 19. cxb5 {[%clk 0:02:05]}  axb5 {[%clk 0:01:11]} 20. Rfc1 {[%clk 0:02:05]}  Nc5 {[%clk 0:01:08]} 21. Rc2 {[%clk 0:01:57]}  Nb3 {[%clk 0:00:54]} 22. Qd1 {[%clk 0:01:57]}  Nc5 {[%clk 0:00:45]} 23. Nc1 {[%clk 0:01:41]}  h5 {[%clk 0:00:43]} 24. Re2 {[%clk 0:01:39]}  Bh6 {[%clk 0:00:37]} 25. Nb3 {[%clk 0:01:39]}  Na4 {[%clk 0:00:30]} 26. Rc2 {[%clk 0:01:37]}  Rxc2 {[%clk 0:00:27]} 27. Qxc2 {[%clk 0:01:37]}  Qc8 {[%clk 0:00:27]} 28. Qd1 {[%clk 0:01:35]}  Qd7 {[%clk 0:00:26]} 29. h4 {[%clk 0:01:33]}  Rc8 {[%clk 0:00:24]} 30. Kh2 {[%clk 0:01:29]}  Kg7 {[%clk 0:00:19]} 31. Bh3 {[%clk 0:01:29]}  f5 {[%clk 0:00:19]} 32. exf5 {[%clk 0:01:30]}  gxf5 {[%clk 0:00:20]} 33. Qxh5 {[%clk 0:01:29]}  Rf8 {[%clk 0:00:10]} 34. Na5 {[%clk 0:00:55]}  Ba8 {[%clk 0:00:09]} 35. Nb3 {[%clk 0:00:54]}  Nc5 {[%clk 0:00:06]} 36. Nxc5 {[%clk 0:00:53]}  dxc5 {[%clk 0:00:07]} 37. Nc2 {[%clk 0:00:53]}  c4 {[%clk 0:00:06]} 38. Rd1 {[%clk 0:00:53]}  Qd5 {[%clk 0:00:05]} 39. Nb4 {[%clk 0:00:51]}  Qf3 {[%clk 0:00:03]} 40. Qxf3 {[%clk 0:00:44]}  Bxf3 {[%clk 0:00:04]} 41. Re1 {[%clk 0:00:43]}  e4 {[%clk 0:00:03]} 42. dxc4 {[%clk 0:00:38]}  bxc4 {[%clk 0:00:03]} 43. Bg2 {[%clk 0:00:38]}  Bxg2 {[%clk 0:00:02]} 44. Kxg2 {[%clk 0:00:39]}  Bd2 {[%clk 0:00:03]} 45. Rd1 {[%clk 0:00:39]}  Bxb4 {[%clk 0:00:03]} 46. axb4 {[%clk 0:00:40]}  d3 {[%clk 0:00:03]} 47. Rc1 {[%clk 0:00:38]}  Rb8 {[%clk 0:00:00]} 48. Rxc4 {[%clk 0:00:37]} 1-0

[Event "December 19 Early 2023"]
[Site "https://www.chess.com"]
[Date "2023.12.19"]
[Round "2"]
[White "Wael Sabry, Mina"]
[Black "Santos, Isaque Goncalves"]
[Result "0-1"]
[Board "255"]
[TimeControl "180+1"]
[WhiteFideId "10670173"]
[BlackFideId "2103885"]
[WhiteElo "1861"]
[BlackElo "1901"]
[WhiteTeam "EGY"]
[BlackTeam "BRA"]
[WhiteClock "0:00:16"]
[BlackClock "0:00:25"]

1. Nf3 {[%clk 0:02:58]}  e6 {[%clk 0:02:58]} 2. g3 {[%clk 0:02:51]}  d5 {[%clk 0:02:57]} 3. Bg2 {[%clk 0:02:51]}  Nf6 {[%clk 0:02:57]} 4. O-O {[%clk 0:02:52]}  Be7 {[%clk 0:02:57]} 5. d4 {[%clk 0:02:51]}  O-O {[%clk 0:02:57]} 6. c4 {[%clk 0:02:49]}  c6 {[%clk 0:02:56]} 7. Nc3 {[%clk 0:02:49]}  dxc4 {[%clk 0:02:55]} 8. Ne5 {[%clk 0:02:48]}  Nd5 {[%clk 0:02:44]} 9. Nxc4 {[%clk 0:02:46]}  b6 {[%clk 0:02:31]} 10. Re1 {[%clk 0:02:25]}  Ba6 {[%clk 0:02:29]} 11. Ne5 {[%clk 0:02:25]}  f6 {[%clk 0:02:24]} 12. Nd3 {[%clk 0:02:22]}  Nd7 {[%clk 0:02:14]} 13. e4 {[%clk 0:02:18]}  Nb4 {[%clk 0:02:08]} 14. Nxb4 {[%clk 0:02:15]}  Bxb4 {[%clk 0:02:07]} 15. Qb3 {[%clk 0:02:16]}  Qe7 {[%clk 0:02:03]} 16. d5 {[%clk 0:02:11]}  exd5 {[%clk 0:01:46]} 17. Qa3 {[%clk 0:01:44]}  Bxa3 {[%clk 0:01:44]} 18. bxa3 {[%clk 0:01:42]}  d4 {[%clk 0:01:32]} 19. Ne2 {[%clk 0:01:39]}  Bxe2 {[%clk 0:01:27]} 20. Rxe2 {[%clk 0:01:38]}  Ne5 {[%clk 0:01:16]} 21. f4 {[%clk 0:01:36]}  Nc4 {[%clk 0:01:11]} 22. e5 {[%clk 0:01:35]}  d3 {[%clk 0:01:09]} 23. Rf2 {[%clk 0:01:26]}  fxe5 {[%clk 0:01:08]} 24. Bxc6 {[%clk 0:01:25]}  Rad8 {[%clk 0:01:00]} 25. Bb5 {[%clk 0:01:18]}  Qc5 {[%clk 0:00:55]} 26. Rb1 {[%clk 0:01:16]}  exf4 {[%clk 0:00:54]} 27. Bxf4 {[%clk 0:01:15]}  d2 {[%clk 0:00:52]} 28. Ba4 {[%clk 0:01:13]}  Nxa3 {[%clk 0:00:47]} 29. Bb3+ {[%clk 0:01:13]}  Kh8 {[%clk 0:00:46]} 30. Rd1 {[%clk 0:01:12]}  g5 {[%clk 0:00:43]} 31. Kg2 {[%clk 0:00:41]}  gxf4 {[%clk 0:00:41]} 32. gxf4 {[%clk 0:00:42]}  Qc6+ {[%clk 0:00:34]} 33. Kh3 {[%clk 0:00:30]}  Rd3+ {[%clk 0:00:32]} 34. Kg4 {[%clk 0:00:28]}  Qg6+ {[%clk 0:00:30]} 35. Kh4 {[%clk 0:00:28]}  Qh6+ {[%clk 0:00:28]} 36. Kg4 {[%clk 0:00:28]}  Qh3+ {[%clk 0:00:27]} 37. Kg5 {[%clk 0:00:26]}  h6+ {[%clk 0:00:25]} 38. Kg6 {[%clk 0:00:16]}  Qf5+ {[%clk 0:00:25]} 39. Kxh6 {[%clk 0:00:16]}  Rh3# {[%clk 0:00:25]} 0-1